[Event "Early-Titled-Tuesday-Blitz-October-10-2023"]
[Site "Chess.com"]
[Date "2023.10.10"]
[Round "1"]
[White "campochess"]
[Black "ama18"]
[Result "0-1"]
[WhiteElo "2130"]
[BlackElo "2554"]
[TimeControl "180+1"]
[EndTime "8:07:24 PDT"]
[Termination "ama18 won by resignation"]

1. e4 {[%clk 0:02:59.2]} 1... c5 {[%clk 0:02:59.6]} 2. d4 {[%clk 0:02:55.3]}
2... cxd4 {[%clk 0:02:59.1]} 3. c3 {[%clk 0:02:55.6]} 3... Nf6 {[%clk
0:02:57.8]} 4. e5 {[%clk 0:02:54.7]} 4... Nd5 {[%clk 0:02:58]} 5. Qxd4 {[%clk
0:02:53.8]} 5... e6 {[%clk 0:02:56.9]} 6. Nf3 {[%clk 0:02:51.7]} 6... Nc6 {[%clk
0:02:56.7]} 7. Qd1 {[%clk 0:02:50.7]} 7... d6 {[%clk 0:02:57]} 8. c4 {[%clk
0:02:46]} 8... Nb6 {[%clk 0:02:52.3]} 9. exd6 {[%clk 0:02:41.1]} 9... Bxd6
{[%clk 0:02:51.4]} 10. Nc3 {[%clk 0:02:36.5]} 10... O-O {[%clk 0:02:50.5]} 11.
Be3 {[%clk 0:02:32.8]} 11... Bb4 {[%clk 0:02:46.6]} 12. Be2 {[%clk 0:02:27.7]}
12... Qf6 {[%clk 0:02:44.4]} 13. O-O {[%clk 0:02:24.3]} 13... Bxc3 {[%clk
0:02:42.1]} 14. bxc3 {[%clk 0:02:24.2]} 14... Rd8 {[%clk 0:02:42.6]} 15. Qc2
{[%clk 0:02:20.3]} 15... h6 {[%clk 0:02:42.3]} 16. Rfd1 {[%clk 0:02:18.7]} 16...
Bd7 {[%clk 0:02:41.6]} 17. Rd2 {[%clk 0:02:15.1]} 17... Be8 {[%clk 0:02:41.3]}
18. Rad1 {[%clk 0:02:14.9]} 18... Rxd2 {[%clk 0:02:41.4]} 19. Rxd2 {[%clk
0:02:14.2]} 19... Rd8 {[%clk 0:02:41.8]} 20. Rxd8 {[%clk 0:02:13.5]} 20... Qxd8
{[%clk 0:02:42]} 21. Nd4 {[%clk 0:02:10.5]} 21... Ne5 {[%clk 0:02:38.6]} 22. c5
{[%clk 0:02:07.3]} 22... Nd5 {[%clk 0:02:38.3]} 23. Bd2 {[%clk 0:01:58]} 23...
Qa5 {[%clk 0:01:57.8]} 24. Nb3 {[%clk 0:01:54.9]} 24... Qc7 {[%clk 0:01:55.2]}
25. c4 {[%clk 0:01:51.7]} 25... Nf6 {[%clk 0:01:49.7]} 26. Bf4 {[%clk
0:01:45.7]} 26... Bc6 {[%clk 0:01:35.4]} 27. Bg3 {[%clk 0:01:44.2]} 27... Nfd7
{[%clk 0:01:30.7]} 28. f4 {[%clk 0:01:42.5]} 28... Ng6 {[%clk 0:01:24.4]} 29. f5
{[%clk 0:01:40.8]} 29... Nf4 {[%clk 0:01:20.9]} 30. fxe6 {[%clk 0:01:29.5]}
30... fxe6 {[%clk 0:01:19.8]} 31. Bf3 {[%clk 0:01:27]} 31... Bxf3 {[%clk
0:01:17.9]} 32. gxf3 {[%clk 0:01:22.2]} 32... e5 {[%clk 0:01:18.3]} 33. Bxf4
{[%clk 0:01:08.4]} 33... exf4 {[%clk 0:01:12.5]} 34. Qf5 {[%clk 0:01:08.1]}
34... Nf6 {[%clk 0:01:07.8]} 35. Qe6+ {[%clk 0:01:02.6]} 35... Qf7 {[%clk
0:01:06]} 36. Nd4 {[%clk 0:00:55.5]} 36... Nd7 {[%clk 0:00:56.2]} 37. Qxf7+
{[%clk 0:00:51.8]} 37... Kxf7 {[%clk 0:00:57.1]} 38. c6 {[%clk 0:00:51.8]} 38...
bxc6 {[%clk 0:00:56.8]} 39. Nxc6 {[%clk 0:00:51.8]} 39... a6 {[%clk 0:00:55.3]}
40. Nb4 {[%clk 0:00:51.4]} 40... Nc5 {[%clk 0:00:51.7]} 41. Nd5 {[%clk
0:00:45.4]} 41... g5 {[%clk 0:00:50.8]} 42. Kf2 {[%clk 0:00:45.5]} 42... Ke6
{[%clk 0:00:50.9]} 43. Ke2 {[%clk 0:00:45.3]} 43... Ke5 {[%clk 0:00:51.5]} 44.
Kd2 {[%clk 0:00:38.3]} 44... Kd4 {[%clk 0:00:51.5]} 45. Ne7 {[%clk 0:00:38.1]}
45... Kxc4 {[%clk 0:00:48.9]} 46. Ng8 {[%clk 0:00:37.3]} 46... h5 {[%clk
0:00:49.1]} 47. Nf6 {[%clk 0:00:37.1]} 47... h4 {[%clk 0:00:49]} 48. Nh7 {[%clk
0:00:35.5]} 48... Ne6 {[%clk 0:00:49.1]} 49. Nf6 {[%clk 0:00:30.6]} 49... Nd4
{[%clk 0:00:47.8]} 50. h3 {[%clk 0:00:22]} 50... Nxf3+ {[%clk 0:00:48.7]} 51.
Kc1 {[%clk 0:00:20.5]} 51... Ng1 {[%clk 0:00:47]} 52. Ne4 {[%clk 0:00:19.5]}
52... Nxh3 {[%clk 0:00:47]} 53. Kb2 {[%clk 0:00:18]} 53... g4 {[%clk 0:00:47.1]}
54. Nd6+ {[%clk 0:00:17.1]} 54... Kd5 {[%clk 0:00:46.9]} 55. Nf5 {[%clk
0:00:17.1]} 55... Ke4 {[%clk 0:00:45.5]} 56. Nxh4 {[%clk 0:00:17.1]} 56... f3
{[%clk 0:00:46.1]} 0-1

[Event "Early-Titled-Tuesday-Blitz-October-10-2023"]
[Site "Chess.com"]
[Date "2023.10.10"]
[Round "1"]
[White "ellatambien"]
[Black "ilya2700"]
[Result "1-0"]
[WhiteElo "2607"]
[BlackElo "2295"]
[TimeControl "180+1"]
[EndTime "8:07:25 PDT"]
[Termination "ellatambien won by resignation"]

1. c4 {[%clk 0:02:59.7]} 1... Nf6 {[%clk 0:03:00]} 2. Nc3 {[%clk 0:02:58.9]}
2... e6 {[%clk 0:03:00.2]} 3. e4 {[%clk 0:02:58.2]} 3... c5 {[%clk 0:02:57.1]}
4. e5 {[%clk 0:02:51.4]} 4... Ng8 {[%clk 0:02:57.2]} 5. Nf3 {[%clk 0:02:51]}
5... Nc6 {[%clk 0:02:57.5]} 6. d4 {[%clk 0:02:49.9]} 6... cxd4 {[%clk
0:02:57.3]} 7. Nxd4 {[%clk 0:02:50.8]} 7... Nxe5 {[%clk 0:02:57.9]} 8. Ndb5
{[%clk 0:02:43.8]} 8... a6 {[%clk 0:02:54.7]} 9. Nd6+ {[%clk 0:02:42.6]} 9...
Bxd6 {[%clk 0:02:55.2]} 10. Qxd6 {[%clk 0:02:43.1]} 10... f6 {[%clk 0:02:51.4]}
11. Be3 {[%clk 0:02:43.3]} 11... Ne7 {[%clk 0:02:51.7]} 12. Bb6 {[%clk
0:02:27.3]} 12... Nf5 {[%clk 0:02:51.3]} 13. Qb4 {[%clk 0:02:24.2]} 13... Nc6
{[%clk 0:02:50.6]} 14. Qc5 {[%clk 0:02:18.7]} 14... Qe7 {[%clk 0:02:41.8]} 15.
O-O-O {[%clk 0:02:14.7]} 15... Qxc5 {[%clk 0:02:38.9]} 16. Bxc5 {[%clk
0:02:13.4]} 16... d6 {[%clk 0:02:39]} 17. Bxd6 {[%clk 0:02:06.3]} 17... Nxd6
{[%clk 0:02:39.2]} 18. Rxd6 {[%clk 0:02:07.2]} 18... Ke7 {[%clk 0:02:39.3]} 19.
c5 {[%clk 0:02:04.1]} 19... Bd7 {[%clk 0:02:30.3]} 20. Be2 {[%clk 0:02:02.2]}
20... Rac8 {[%clk 0:02:26.1]} 21. Rhd1 {[%clk 0:01:58.9]} 21... Rhd8 {[%clk
0:02:15]} 22. a3 {[%clk 0:01:49.3]} 22... Be8 {[%clk 0:02:03.1]} 23. f4 {[%clk
0:01:33.5]} 23... f5 {[%clk 0:01:38.7]} 24. g3 {[%clk 0:01:16.2]} 24... Bf7
{[%clk 0:01:17.4]} 25. Kc2 {[%clk 0:01:07]} 25... g6 {[%clk 0:01:07.5]} 26. b4
{[%clk 0:01:02.6]} 26... e5 {[%clk 0:01:06.5]} 27. Rxd8 {[%clk 0:00:44.9]} 27...
Rxd8 {[%clk 0:01:04.8]} 28. Rxd8 {[%clk 0:00:45.4]} 28... Kxd8 {[%clk
0:01:04.2]} 29. Kd3 {[%clk 0:00:45.3]} 29... e4+ {[%clk 0:01:03.8]} 30. Ke3
{[%clk 0:00:45.7]} 30... Ke7 {[%clk 0:00:56.2]} 31. g4 {[%clk 0:00:45]} 31...
Kf6 {[%clk 0:00:56.3]} 32. gxf5 {[%clk 0:00:44]} 32... gxf5 {[%clk 0:00:56.2]}
33. Nd1 {[%clk 0:00:42.8]} 33... Ne7 {[%clk 0:00:52.9]} 34. Kf2 {[%clk
0:00:38.4]} 34... Nd5 {[%clk 0:00:50.8]} 35. Kg3 {[%clk 0:00:38.7]} 35... Ke7
{[%clk 0:00:31.4]} 36. Bc4 {[%clk 0:00:38.8]} 36... Nc3 {[%clk 0:00:25.5]} 37.
Nxc3 {[%clk 0:00:37.1]} 37... Bxc4 {[%clk 0:00:25.9]} 38. Nd1 {[%clk 0:00:37.7]}
38... Ke6 {[%clk 0:00:24.7]} 39. Ne3 {[%clk 0:00:38.6]} 39... Be2 {[%clk
0:00:25.1]} 40. Kh4 {[%clk 0:00:38.6]} 40... Bf3 {[%clk 0:00:24.4]} 41. Kg5
{[%clk 0:00:38.5]} 41... Bg4 {[%clk 0:00:17.7]} 42. Nxg4 {[%clk 0:00:38.5]}
42... fxg4 {[%clk 0:00:18]} 43. Kxg4 {[%clk 0:00:39.4]} 43... Kf6 {[%clk
0:00:18.8]} 44. f5 {[%clk 0:00:35.6]} 44... e3 {[%clk 0:00:16.1]} 45. Kf3 {[%clk
0:00:35.6]} 45... Kxf5 {[%clk 0:00:17]} 46. Kxe3 {[%clk 0:00:36.5]} 46... Kg4
{[%clk 0:00:17.9]} 47. a4 {[%clk 0:00:36.4]} 47... Kh3 {[%clk 0:00:18.2]} 48. b5
{[%clk 0:00:36.9]} 48... Kxh2 {[%clk 0:00:18.8]} 49. c6 {[%clk 0:00:36.5]} 1-0

[Event "Early-Titled-Tuesday-Blitz-October-10-2023"]
[Site "Chess.com"]
[Date "2023.10.10"]
[Round "1"]
[White "Aleksandar-Topalov"]
[Black "Roman_Ovetchkin"]
[Result "0-1"]
[WhiteElo "2401"]
[BlackElo "2711"]
[TimeControl "180+1"]
[EndTime "8:07:26 PDT"]
[Termination "Roman_Ovetchkin won on time"]

1. b3 {[%clk 0:03:00.5]} 1... e5 {[%clk 0:02:56.6]} 2. Bb2 {[%clk 0:02:57.4]}
2... Nc6 {[%clk 0:02:56.6]} 3. e3 {[%clk 0:02:57.4]} 3... Nf6 {[%clk 0:02:56.1]}
4. Bb5 {[%clk 0:02:56.1]} 4... Bd6 {[%clk 0:02:56]} 5. Na3 {[%clk 0:02:54.9]}
5... Na5 {[%clk 0:02:56.1]} 6. Be2 {[%clk 0:02:46.9]} 6... O-O {[%clk
0:02:54.9]} 7. Nb5 {[%clk 0:02:37.1]} 7... Re8 {[%clk 0:02:49]} 8. Nxd6 {[%clk
0:02:36.3]} 8... cxd6 {[%clk 0:02:48.4]} 9. Nf3 {[%clk 0:02:35.4]} 9... b6
{[%clk 0:02:42.7]} 10. O-O {[%clk 0:02:34.9]} 10... Bb7 {[%clk 0:02:42.9]} 11.
c4 {[%clk 0:02:16.2]} 11... Rc8 {[%clk 0:02:40.6]} 12. d3 {[%clk 0:02:08.1]}
12... Nc6 {[%clk 0:02:38.5]} 13. Nd2 {[%clk 0:02:03.8]} 13... d5 {[%clk
0:02:37.3]} 14. cxd5 {[%clk 0:01:58.4]} 14... Nxd5 {[%clk 0:02:36.3]} 15. Bf3
{[%clk 0:01:47.5]} 15... Nf6 {[%clk 0:02:35.5]} 16. Ne4 {[%clk 0:01:39.7]} 16...
Nxe4 {[%clk 0:02:23.1]} 17. dxe4 {[%clk 0:01:35.2]} 17... Ba6 {[%clk 0:02:22.6]}
18. Be2 {[%clk 0:01:32]} 18... Bxe2 {[%clk 0:02:22.1]} 19. Qxe2 {[%clk
0:01:32.2]} 19... Qh4 {[%clk 0:02:15.8]} 20. f3 {[%clk 0:01:20.6]} 20... Re6
{[%clk 0:02:13.3]} 21. Rac1 {[%clk 0:01:14.6]} 21... Rh6 {[%clk 0:02:10.7]} 22.
g3 {[%clk 0:01:14.7]} 22... Rg6 {[%clk 0:02:08]} 23. Rfd1 {[%clk 0:01:09.1]}
23... Qe7 {[%clk 0:02:07.7]} 24. Rd5 {[%clk 0:00:58.2]} 24... h5 {[%clk
0:01:55.2]} 25. Qd2 {[%clk 0:00:54.8]} 25... Rd8 {[%clk 0:01:49.5]} 26. Kh1
{[%clk 0:00:45.6]} 26... h4 {[%clk 0:01:45.7]} 27. g4 {[%clk 0:00:44.6]} 27...
h3 {[%clk 0:01:45.8]} 28. Rd1 {[%clk 0:00:41.6]} 28... Rf6 {[%clk 0:01:28.4]}
29. Rf1 {[%clk 0:00:30.7]} 29... a5 {[%clk 0:01:12]} 30. a3 {[%clk 0:00:28.8]}
30... d6 {[%clk 0:01:06.2]} 31. Kg1 {[%clk 0:00:27.9]} 31... Na7 {[%clk
0:01:03.2]} 32. Bxe5 {[%clk 0:00:21.7]} 32... Rg6 {[%clk 0:01:00.7]} 33. Bg3
{[%clk 0:00:20.1]} 33... Rc8 {[%clk 0:00:53.7]} 34. Rd1 {[%clk 0:00:18.9]} 34...
Qf6 {[%clk 0:00:52.2]} 35. Rf5 {[%clk 0:00:15.2]} 35... Qc3 {[%clk 0:00:50.9]}
36. Kf2 {[%clk 0:00:12.1]} 36... Qxd2+ {[%clk 0:00:50.5]} 37. Rxd2 {[%clk
0:00:12]} 37... Rc3 {[%clk 0:00:50.7]} 38. b4 {[%clk 0:00:12]} 38... a4 {[%clk
0:00:50.4]} 39. Bxd6 {[%clk 0:00:10]} 39... Rxa3 {[%clk 0:00:49.7]} 40. Rfd5
{[%clk 0:00:08.5]} 40... Rb3 {[%clk 0:00:47.2]} 41. e5 {[%clk 0:00:08.1]} 41...
a3 {[%clk 0:00:44.3]} 42. Ra2 {[%clk 0:00:08.3]} 42... Rb2+ {[%clk 0:00:38.6]}
43. Rxb2 {[%clk 0:00:07.3]} 43... axb2 {[%clk 0:00:39.5]} 44. Rd1 {[%clk
0:00:07.5]} 44... Nb5 {[%clk 0:00:40.1]} 45. Rb1 {[%clk 0:00:07]} 45... Nc3
{[%clk 0:00:40.1]} 46. Rxb2 {[%clk 0:00:07.3]} 46... Nd1+ {[%clk 0:00:41]} 47.
Kg3 {[%clk 0:00:07]} 47... Nxb2 {[%clk 0:00:41.9]} 48. Kxh3 {[%clk 0:00:07.5]}
48... Nc4 {[%clk 0:00:41.2]} 49. Bc7 {[%clk 0:00:04.6]} 49... Nxe3 {[%clk
0:00:40]} 50. Kg3 {[%clk 0:00:02]} 50... Rc6 {[%clk 0:00:37.7]} 0-1

[Event "Early-Titled-Tuesday-Blitz-October-10-2023"]
[Site "Chess.com"]
[Date "2023.10.10"]
[Round "1"]
[White "Firouzja2003"]
[Black "koncheto"]
[Result "1-0"]
[WhiteElo "3091"]
[BlackElo "2520"]
[TimeControl "180+1"]
[EndTime "8:07:27 PDT"]
[Termination "Firouzja2003 won by checkmate"]

1. d4 {[%clk 0:02:54.5]} 1... Nf6 {[%clk 0:02:59.6]} 2. Bg5 {[%clk 0:02:47.7]}
2... Ne4 {[%clk 0:02:58.8]} 3. Bf4 {[%clk 0:02:46.8]} 3... d5 {[%clk 0:02:55.7]}
4. e3 {[%clk 0:02:44.7]} 4... c5 {[%clk 0:02:50.4]} 5. c3 {[%clk 0:02:38.4]}
5... Bf5 {[%clk 0:02:46.8]} 6. Bd3 {[%clk 0:02:14.5]} 6... Qb6 {[%clk
0:02:37.8]} 7. Qb3 {[%clk 0:01:53.5]} 7... c4 {[%clk 0:01:59.2]} 8. Qxb6 {[%clk
0:01:43.6]} 8... axb6 {[%clk 0:02:00.1]} 9. Bc2 {[%clk 0:01:38.2]} 9... Bg6
{[%clk 0:01:43.4]} 10. Na3 {[%clk 0:01:27.3]} 10... e5 {[%clk 0:01:23.6]} 11.
Nb5 {[%clk 0:01:09]} 11... exf4 {[%clk 0:01:08.8]} 12. Nc7+ {[%clk 0:01:08.7]}
12... Kd7 {[%clk 0:01:09.2]} 13. Nxa8 {[%clk 0:01:09.2]} 13... fxe3 {[%clk
0:01:03]} 14. Ba4+ {[%clk 0:01:01]} 14... Kd8 {[%clk 0:00:47.8]} 15. fxe3 {[%clk
0:00:56.1]} 15... b5 {[%clk 0:00:40.7]} 16. Bxb5 {[%clk 0:00:48.5]} 16... Nd6
{[%clk 0:00:40.9]} 17. Ba4 {[%clk 0:00:48.8]} 17... b5 {[%clk 0:00:38.5]} 18.
Bd1 {[%clk 0:00:48.4]} 18... Nd7 {[%clk 0:00:36.6]} 19. Bf3 {[%clk 0:00:45.7]}
19... Ne4 {[%clk 0:00:32.1]} 20. Ne2 {[%clk 0:00:38.9]} 20... Bd6 {[%clk
0:00:17.5]} 21. a4 {[%clk 0:00:38.2]} 21... b4 {[%clk 0:00:17.4]} 22. a5 {[%clk
0:00:37.6]} 22... Re8 {[%clk 0:00:11.6]} 23. Nb6 {[%clk 0:00:36.5]} 23... Nxb6
{[%clk 0:00:06.2]} 24. axb6 {[%clk 0:00:37.4]} 24... Kd7 {[%clk 0:00:07]} 25.
O-O {[%clk 0:00:32.8]} 25... Nd2 {[%clk 0:00:06]} 26. Bxd5 {[%clk 0:00:30.8]}
26... Nxf1 {[%clk 0:00:05.9]} 27. Ra7+ {[%clk 0:00:30.6]} 27... Kc8 {[%clk
0:00:02.9]} 28. Kxf1 {[%clk 0:00:28]} 28... Rxe3 {[%clk 0:00:02.7]} 29. Ra8+
{[%clk 0:00:27.7]} 29... Kd7 {[%clk 0:00:02.6]} 30. b7 {[%clk 0:00:28.1]} 30...
Bd3 {[%clk 0:00:02.5]} 31. Bf3 {[%clk 0:00:28.1]} 31... bxc3 {[%clk 0:00:02.8]}
32. bxc3 {[%clk 0:00:28.2]} 32... Re8 {[%clk 0:00:03.4]} 33. Bc6+ {[%clk
0:00:27.3]} 33... Kxc6 {[%clk 0:00:03.2]} 34. Rxe8 {[%clk 0:00:26.9]} 34... Kxb7
{[%clk 0:00:03.5]} 35. Rg8 {[%clk 0:00:27.2]} 35... g6 {[%clk 0:00:03.6]} 36.
Rg7 {[%clk 0:00:27.7]} 36... h5 {[%clk 0:00:03.8]} 37. Rxf7+ {[%clk 0:00:28.2]}
37... Kc6 {[%clk 0:00:04.7]} 38. Kf2 {[%clk 0:00:28.8]} 38... Kd5 {[%clk
0:00:05]} 39. Nf4+ {[%clk 0:00:29.1]} 39... Ke4 {[%clk 0:00:03.8]} 40. Nxg6
{[%clk 0:00:28.7]} 40... Bxh2 {[%clk 0:00:02.1]} 41. g3 {[%clk 0:00:28.8]} 41...
Kd5 {[%clk 0:00:02.7]} 42. Nf4+ {[%clk 0:00:29.2]} 42... Ke4 {[%clk 0:00:02.8]}
43. Nxh5 {[%clk 0:00:29.5]} 43... Kd5 {[%clk 0:00:02.3]} 44. Nf4+ {[%clk
0:00:29.9]} 44... Ke4 {[%clk 0:00:02.6]} 45. Rh7 {[%clk 0:00:30.4]} 45... Bxg3+
{[%clk 0:00:02.4]} 46. Kxg3 {[%clk 0:00:31.3]} 46... Ke3 {[%clk 0:00:03.2]} 47.
Rh2 {[%clk 0:00:31]} 47... Be4 {[%clk 0:00:03]} 48. d5 {[%clk 0:00:31]} 48...
Bf3 {[%clk 0:00:02]} 49. d6 {[%clk 0:00:31.5]} 49... Bg4 {[%clk 0:00:02.5]} 50.
Kxg4 {[%clk 0:00:29.7]} 50... Ke4 {[%clk 0:00:03.1]} 51. Re2# {[%clk 0:00:30]}
1-0

[Event "Early-Titled-Tuesday-Blitz-October-10-2023"]
[Site "Chess.com"]
[Date "2023.10.10"]
[Round "1"]
[White "sokidze"]
[Black "Smiechu"]
[Result "0-1"]
[WhiteElo "2811"]
[BlackElo "2477"]
[TimeControl "180+1"]
[EndTime "8:07:27 PDT"]
[Termination "Smiechu won on time"]

1. d4 {[%clk 0:02:59.8]} 1... Nf6 {[%clk 0:02:59.7]} 2. c4 {[%clk 0:02:59.7]}
2... c5 {[%clk 0:02:59.9]} 3. d5 {[%clk 0:02:59]} 3... e6 {[%clk 0:03:00.3]} 4.
Nc3 {[%clk 0:02:57]} 4... exd5 {[%clk 0:03:00.8]} 5. cxd5 {[%clk 0:02:57]} 5...
d6 {[%clk 0:03:01.4]} 6. e4 {[%clk 0:02:53.6]} 6... g6 {[%clk 0:03:01.6]} 7. h3
{[%clk 0:02:50.5]} 7... Bg7 {[%clk 0:03:01.8]} 8. Nf3 {[%clk 0:02:50.9]} 8...
O-O {[%clk 0:02:50.3]} 9. Be3 {[%clk 0:02:50.7]} 9... Re8 {[%clk 0:02:48.9]} 10.
Nd2 {[%clk 0:02:50.2]} 10... Nbd7 {[%clk 0:02:48.8]} 11. Be2 {[%clk 0:02:49.4]}
11... a6 {[%clk 0:02:48.8]} 12. a4 {[%clk 0:02:49.2]} 12... c4 {[%clk
0:02:45.3]} 13. O-O {[%clk 0:02:32.1]} 13... Nc5 {[%clk 0:02:44.1]} 14. Bxc5
{[%clk 0:02:26]} 14... dxc5 {[%clk 0:02:44.4]} 15. a5 {[%clk 0:02:22.3]} 15...
Bd7 {[%clk 0:02:28.5]} 16. Bxc4 {[%clk 0:01:59.1]} 16... Bb5 {[%clk 0:02:21.2]}
17. Nxb5 {[%clk 0:01:54.2]} 17... axb5 {[%clk 0:02:20.7]} 18. Bxb5 {[%clk
0:01:54.6]} 18... Re7 {[%clk 0:02:16.7]} 19. Re1 {[%clk 0:01:42.8]} 19... Rxa5
{[%clk 0:02:10.7]} 20. Rxa5 {[%clk 0:01:28.3]} 20... Qxa5 {[%clk 0:02:10.4]} 21.
Bf1 {[%clk 0:01:20.5]} 21... Qd8 {[%clk 0:01:45.2]} 22. g3 {[%clk 0:00:54.9]}
22... Ne8 {[%clk 0:01:23.3]} 23. Qc2 {[%clk 0:00:44.5]} 23... f5 {[%clk
0:01:08]} 24. Qxc5 {[%clk 0:00:41]} 24... Nd6 {[%clk 0:00:50.4]} 25. Qb4 {[%clk
0:00:25.4]} 25... h5 {[%clk 0:00:28.3]} 26. h4 {[%clk 0:00:15.5]} 26... f4
{[%clk 0:00:28]} 27. Bh3 {[%clk 0:00:09.6]} 27... fxg3 {[%clk 0:00:18.4]} 28.
fxg3 {[%clk 0:00:10.5]} 28... Be5 {[%clk 0:00:17.5]} 29. Qb3 {[%clk 0:00:09.1]}
29... Kh7 {[%clk 0:00:16.1]} 30. Be6 {[%clk 0:00:07.8]} 30... g5 {[%clk
0:00:15.2]} 31. Nf3 {[%clk 0:00:07.1]} 31... gxh4 {[%clk 0:00:07.2]} 32. Nxe5
{[%clk 0:00:07.3]} 32... Rg7 {[%clk 0:00:07.3]} 33. g4 {[%clk 0:00:06.5]} 33...
Qf6 {[%clk 0:00:06.1]} 34. Qc3 {[%clk 0:00:03.9]} 34... Nb5 {[%clk 0:00:05.2]}
35. Qd3 {[%clk 0:00:01.6]} 35... Qxe5 {[%clk 0:00:05.4]} 36. Kh1 {[%clk
0:00:01.1]} 36... hxg4 {[%clk 0:00:05.2]} 0-1

[Event "Early-Titled-Tuesday-Blitz-October-10-2023"]
[Site "Chess.com"]
[Date "2023.10.10"]
[Round "1"]
[White "masterofpuppets2"]
[Black "Oleksandr_Bortnyk"]
[Result "0-1"]
[WhiteElo "2515"]
[BlackElo "3052"]
[TimeControl "180+1"]
[EndTime "8:07:39 PDT"]
[Termination "Oleksandr_Bortnyk won by resignation"]

1. d4 {[%clk 0:03:00.4]} 1... d6 {[%clk 0:02:49.9]} 2. c4 {[%clk 0:03:00]} 2...
e5 {[%clk 0:02:49.6]} 3. d5 {[%clk 0:03:00.1]} 3... a5 {[%clk 0:02:39]} 4. Nc3
{[%clk 0:02:59.3]} 4... g6 {[%clk 0:02:34.4]} 5. e4 {[%clk 0:02:48.5]} 5... Bg7
{[%clk 0:02:33.6]} 6. Bd3 {[%clk 0:02:47.5]} 6... Na6 {[%clk 0:02:32.3]} 7. Be3
{[%clk 0:02:45.5]} 7... Nf6 {[%clk 0:02:23.6]} 8. f3 {[%clk 0:02:45]} 8... O-O
{[%clk 0:02:01.2]} 9. Nge2 {[%clk 0:02:45]} 9... Nc5 {[%clk 0:02:01.4]} 10. Bc2
{[%clk 0:02:45]} 10... c6 {[%clk 0:01:53.7]} 11. Qd2 {[%clk 0:02:44]} 11... cxd5
{[%clk 0:01:53.3]} 12. exd5 {[%clk 0:02:27.9]} 12... Nfd7 {[%clk 0:01:44]} 13.
O-O {[%clk 0:02:15.2]} 13... f5 {[%clk 0:01:41.1]} 14. f4 {[%clk 0:02:15.4]}
14... e4 {[%clk 0:01:33.3]} 15. Nd4 {[%clk 0:02:04.9]} 15... Nf6 {[%clk
0:01:20.5]} 16. h3 {[%clk 0:02:04.9]} 16... Nh5 {[%clk 0:01:20.4]} 17. Ncb5
{[%clk 0:01:50.7]} 17... Ra6 {[%clk 0:01:16.9]} 18. b3 {[%clk 0:01:45.9]} 18...
Bd7 {[%clk 0:01:14.8]} 19. Rab1 {[%clk 0:01:42.5]} 19... Re8 {[%clk 0:01:04.2]}
20. a3 {[%clk 0:01:41.9]} 20... h6 {[%clk 0:00:56.6]} 21. b4 {[%clk 0:01:37.6]}
21... axb4 {[%clk 0:00:57.5]} 22. axb4 {[%clk 0:01:38.3]} 22... Nd3 {[%clk
0:00:56.5]} 23. Ra1 {[%clk 0:01:16.6]} 23... Bxb5 {[%clk 0:00:50.3]} 24. cxb5
{[%clk 0:01:16]} 24... Rxa1 {[%clk 0:00:51.2]} 25. Rxa1 {[%clk 0:01:15.7]} 25...
Nhxf4 {[%clk 0:00:48.2]} 26. Rd1 {[%clk 0:01:01.1]} 26... Nxd5 {[%clk
0:00:42.2]} 27. Bb3 {[%clk 0:00:59.1]} 27... Re5 {[%clk 0:00:34.6]} 28. Ne6
{[%clk 0:00:50.1]} 28... Qe7 {[%clk 0:00:24.7]} 29. Nxg7 {[%clk 0:00:47.6]}
29... Kxg7 {[%clk 0:00:25]} 30. Bd4 {[%clk 0:00:47.7]} 30... N5xb4 {[%clk
0:00:23.4]} 31. Qc3 {[%clk 0:00:38.6]} 31... h5 {[%clk 0:00:20.8]} 32. Bc4
{[%clk 0:00:34.3]} 32... Kh7 {[%clk 0:00:20]} 33. Bxe5 {[%clk 0:00:28.7]} 33...
dxe5 {[%clk 0:00:18.5]} 34. Bb3 {[%clk 0:00:27.3]} 34... Qc5+ {[%clk 0:00:17.8]}
35. Qxc5 {[%clk 0:00:26.5]} 35... Nxc5 {[%clk 0:00:18.7]} 36. Bc4 {[%clk
0:00:24.7]} 36... Nbd3 {[%clk 0:00:16.5]} 37. g3 {[%clk 0:00:22.6]} 37... g5
{[%clk 0:00:15.9]} 38. Kf1 {[%clk 0:00:20]} 38... f4 {[%clk 0:00:15.3]} 39. gxf4
{[%clk 0:00:20.1]} 39... exf4 {[%clk 0:00:11.9]} 40. Ke2 {[%clk 0:00:20.4]}
40... Kg6 {[%clk 0:00:10.6]} 41. Rg1 {[%clk 0:00:19.9]} 41... Kf5 {[%clk
0:00:10.9]} 42. Bd5 {[%clk 0:00:19.4]} 42... g4 {[%clk 0:00:09.7]} 43. hxg4+
{[%clk 0:00:19.1]} 43... hxg4 {[%clk 0:00:10.6]} 44. Bf7 {[%clk 0:00:17.7]}
44... g3 {[%clk 0:00:10.4]} 45. Bh5 {[%clk 0:00:17.5]} 45... Ne5 {[%clk
0:00:10.6]} 46. Rc1 {[%clk 0:00:15.9]} 46... Ne6 {[%clk 0:00:10.9]} 47. Kf1
{[%clk 0:00:13.9]} 47... f3 {[%clk 0:00:10.8]} 48. Be8 {[%clk 0:00:12.7]} 48...
e3 {[%clk 0:00:09.5]} 49. Bc6 {[%clk 0:00:11]} 49... bxc6 {[%clk 0:00:09.7]} 50.
bxc6 {[%clk 0:00:11.6]} 50... e2+ {[%clk 0:00:10.5]} 51. Ke1 {[%clk 0:00:11.5]}
51... Nd3+ {[%clk 0:00:10.5]} 0-1